fUST/lending_fUST_20240902
["ID","MTS","AMOUNT","RATE_DAILY","PERIOD"]
[336960396,1725264656077,-1149.46,0.00024657,2]
[336960398,1725264656086,-500.0,0.00024657,2]
[336960400,1725264656095,-1193.25,0.00024657,2]
[336960402,1725264656105,-500.0,0.00024931,2]
[336960404,1725264656114,-500.0,0.00024931,2]
[336960406,1725264656124,-1149.46,0.00024931,2]
[336960408,1725264656133,-1193.25,0.00024931,2]
[336960410,1725264656142,-500.0,0.00025205,2]
[336960412,1725264656151,-500.0,0.00025205,2]
[336960414,1725264656161,-1149.46,0.00025205,2]
[336960416,1725264656170,-500.0,0.00025479,2]
[336960418,1725264656180,-500.0,0.00025479,2]
[336960420,1725264656190,-1149.46,0.00025479,2]
[336960422,1725264656200,-500.0,0.00025753,2]
[336960424,1725264656208,-500.0,0.00025753,2]
[336960426,1725264656220,-1149.46,0.00025753,2]
[336960428,1725264656230,-500.0,0.00026027,2]
[336960430,1725264656240,-500.0,0.00026027,2]
[336960433,1725264656250,-1149.46,0.00026027,2]
[336960434,1725264656259,-500.0,0.00026301,2]
[336960436,1725264656269,-1149.46,0.00026301,2]
[336960439,1725264656279,-500.0,0.00026301,2]
[336960440,1725264656288,-555.52,0.00026575,2]
[336960443,1725264656297,-1149.46,0.00026575,2]
[336960445,1725264656307,-500.0,0.00026575,2]
[336960447,1725264656316,-555.52,0.00026849,2]
[336960449,1725264656326,-555.52,0.00027123,2]
[336960467,1725264656492,-555.52,0.00027397,2]
[336960469,1725264656503,-555.52,0.00027671,15]
[336960471,1725264656513,-555.52,0.00027945,15]
[336960473,1725264656523,-555.52,0.00028219,15]
[336960475,1725264656534,-555.52,0.00028493,15]
[336960477,1725264656544,-5165.83220196,0.000285,14]
[336960479,1725264656553,-1500.0,0.00028522,2]
[336960482,1725264656565,-2000.0,0.0002853,2]
[336960484,1725264656575,-3000.0,0.00028587,2]
[336960486,1725264656586,-3000.0,0.00028614,2]
[336960488,1725264656597,-500.0,0.00028643,2]
[336960490,1725264656606,-169.58096664,0.00028704,7]
[336960492,1725264656615,-170.80410684,0.00028704,7]
[336960494,1725264656625,-1100.0,0.00028721,2]
[336960496,1725264656634,-263.6353788,0.00028723,2]
[336960498,1725264656644,-500.0,0.00028727,2]
[336960500,1725264656653,-1211.61,0.00028767,15]
[336960502,1725264656662,-500.0,0.00028767,15]
[336960504,1725264656672,-500.0,0.00028767,15]
[336960506,1725264656681,-638.56,0.00028767,15]
[336960507,1725264656690,-490.69251123,0.00028767,15]
[336960510,1725264656700,-500.0,0.00028767,15]
[336960511,1725264656710,-500.0,0.00028767,15]
[336960513,1725264656718,-529.2,0.00028767,15]
[336960515,1725264656729,-616.39,0.00028767,15]
[336960517,1725264656738,-4009.75,0.00028767,8]
[336960519,1725264656747,-564.88,0.00028767,15]
[336960521,1725264656757,-500.0,0.00028767,15]
[336960523,1725264656766,-558.31,0.00028767,15]
[336960525,1725264656776,-500.0,0.00028767,15]
[336960527,1725264656787,-500.0,0.00028767,15]
[336960529,1725264656797,-931.38,0.00028767,15]
[336960531,1725264656808,-376.2392229,0.00028767,15]
[336960533,1725264656818,-719.51,0.00028767,15]
[336960535,1725264656827,-1614.89,0.00028767,15]
[336960537,1725264656839,-519.97,0.00028767,15]
[336960540,1725264656851,-500.0,0.00028767,15]
[336960542,1725264656861,-694.08,0.00028767,15]
[336960544,1725264656871,-500.0,0.00028767,15]
[336960546,1725264656883,-500.0,0.00028767,15]
[336960548,1725264656892,-500.0,0.00028767,15]
[336960550,1725264656902,-500.0,0.00028767,15]
[336960552,1725264656911,-500.0,0.00028767,15]
[336960554,1725264656922,-2977.89,0.00028767,15]
[336960556,1725264656931,-586.14,0.00028767,15]
[336960558,1725264656944,-500.0,0.00028767,15]
[336960560,1725264656955,-500.0,0.00028767,15]
[336960561,1725264656964,-769.39,0.00028767,15]
[336960563,1725264656973,-500.0,0.00028767,15]
[336960565,1725264656982,-561.26,0.00028767,15]
[336960567,1725264656991,-500.0,0.00028767,15]
[336960569,1725264657001,-500.0,0.00028767,15]
[336960571,1725264657011,-2315.31,0.00028767,15]
[336960573,1725264657020,-500.0,0.00028767,15]
[336960575,1725264657030,-500.0,0.00028767,15]
[336960577,1725264657047,-603.32,0.00028767,15]
[336960579,1725264657057,-617.28,0.00028767,15]
[336960581,1725264657067,-847.64,0.00028767,15]
[336960583,1725264657077,-892.32,0.00028767,15]
[336960585,1725264657087,-500.0,0.00028767,15]
[336960587,1725264657096,-1204.86,0.00028767,15]
[336960589,1725264657106,-687.46,0.00028767,15]
[336960591,1725264657115,-907.57,0.00028767,15]
[336960593,1725264657124,-500.0,0.00028767,15]
[336960595,1725264657134,-698.24,0.00028767,15]
[336960597,1725264657143,-1316.73,0.00028767,15]
[336960599,1725264657154,-555.52,0.00028767,15]
[336960600,1725264657163,-333.346809,0.00028767,2]
[336960601,1725264657173,-1500.0,0.00028781,2]
[336960602,1725264657182,-1100.0,0.00028784,2]
[336960603,1725264657193,-1224.47,0.000288,14]
[336960604,1725264657203,-1854.83,0.000288,7]
[336960605,1725264657213,-150.112233,0.000288,8]
[336960606,1725264657224,-2000.0,0.00028801,2]
[336960607,1725264657235,-500.0,0.00028842,2]
[336960608,1725264657246,-2000.0,0.00028845,2]
[336960609,1725264657256,-1100.0,0.00028854,2]
[336960610,1725264657265,-500.0,0.00028861,2]
[336960611,1725264657274,-1500.0,0.00028867,2]
[336960612,1725264657284,-1500.0,0.0002887,2]
[336960613,1725264657294,-500.0,0.00028886,2]
[336960614,1725264657303,-1500.0,0.00028893,2]
[336960615,1725264657313,-1000.0,0.000289,2]
[336960616,1725264657322,-499.3,0.0002895,2]
[336960617,1725264657331,-1100.0,0.0002895,2]
[336960618,1725264657340,-2000.0,0.00028979,2]
[336960619,1725264657350,-2000.0,0.00028983,2]
[336960620,1725264657360,-1211.61,0.00029041,15]
[336960621,1725264657369,-536.28013345,0.00029041,15]
[336960622,1725264657378,-500.0,0.00029041,15]
[336960623,1725264657387,-638.56,0.00029041,15]
[336960624,1725264657395,-500.0,0.00029041,15]
[336960625,1725264657405,-500.0,0.00029041,15]
[336960626,1725264657414,-529.2,0.00029041,15]
[336960627,1725264657423,-616.39,0.00029041,15]
[336960628,1725264657433,-4009.75,0.00029041,8]
[336960629,1725264657443,-564.88,0.00029041,15]
[336960630,1725264657454,-500.0,0.00029041,15]
[336960631,1725264657463,-558.31,0.00029041,15]
[336960632,1725264657472,-156.66876409,0.00029041,15]
[336960633,1725264657481,-500.0,0.00029041,15]
[336960634,1725264657491,-931.38,0.00029041,15]
[336960635,1725264657500,-719.51,0.00029041,15]
[336960636,1725264657509,-1614.89,0.00029041,15]
[336960637,1725264657518,-519.97,0.00029041,15]
[336960638,1725264657528,-500.0,0.00029041,15]
[336960639,1725264657538,-694.08,0.00029041,15]
[336960640,1725264657548,-500.0,0.00029041,15]
[336960641,1725264657558,-500.0,0.00029041,15]
[336960642,1725264657567,-500.0,0.00029041,15]
[336960643,1725264657577,-500.0,0.00029041,15]
[336960644,1725264657586,-500.0,0.00029041,15]
[336960645,1725264657596,-2977.89,0.00029041,15]
[336960646,1725264657605,-586.14,0.00029041,15]
[336960647,1725264657615,-500.0,0.00029041,15]
[336960648,1725264657624,-500.0,0.00029041,15]
[336960649,1725264657633,-769.39,0.00029041,15]
[336960650,1725264657643,-500.0,0.00029041,15]
[336960651,1725264657652,-561.26,0.00029041,15]
[336960652,1725264657661,-500.0,0.00029041,15]
[336960653,1725264657671,-500.0,0.00029041,15]
[336960654,1725264657680,-2315.31,0.00029041,15]
[336960655,1725264657689,-500.0,0.00029041,15]
[336960656,1725264657698,-500.0,0.00029041,15]
[336960657,1725264657708,-603.32,0.00029041,15]
[336960658,1725264657717,-617.28,0.00029041,15]
[336960659,1725264657727,-847.64,0.00029041,15]
[336960660,1725264657736,-892.32,0.00029041,15]
[336960661,1725264657745,-500.0,0.00029041,15]
[336960662,1725264657755,-1204.86,0.00029041,15]
[336960663,1725264657765,-687.46,0.00029041,15]
[336960664,1725264657774,-907.57,0.00029041,15]
[336960665,1725264657783,-500.0,0.00029041,15]
[336960666,1725264657794,-698.24,0.00029041,15]
[336960667,1725264657804,-1316.73,0.00029041,15]
[336960668,1725264657813,-555.52,0.00029041,15]
[336960669,1725264657823,-150.0,0.00029093,2]
[336960670,1725264657832,-150.0,0.00029093,2]
[336960671,1725264657844,-523.0,0.00029093,2]
[336960672,1725264657853,-150.0,0.00029093,2]
[336960673,1725264657863,-500.0,0.00029119,2]
[336960674,1725264657874,-1287.5168053,0.0002918,2]
[336960682,1725264899605,-4956.58623061,0.00024557,2]
[336960683,1725264899629,-300.0,0.00024656,2]
[336960684,1725264899650,-500.0,0.00024657,2]
[336960685,1725264899673,-500.0,0.00024657,2]
[336960686,1725264899695,-500.0,0.00024657,2]
[336960687,1725264899720,-500.0,0.00024657,2]
[336960688,1725264899742,-500.0,0.00024657,2]
[336960689,1725264899764,-500.0,0.00024657,2]
[336960690,1725264899785,-348.79875662,0.00024657,2]
[336960691,1725264899807,-269.86582617,0.00024657,2]
[336960692,1725264899829,-500.0,0.00024657,2]
[336960693,1725264899858,-500.0,0.00024657,2]
[336960694,1725264899884,-500.0,0.00024657,2]
[336960695,1725264899909,-500.0,0.00024657,2]
[336960696,1725264899933,-1206.81,0.00024657,2]
[336960697,1725264899959,-500.0,0.00024657,2]
[336960698,1725264899982,-500.0,0.00024657,2]
[336960699,1725264900005,-6912.24,0.00024657,2]
[336960700,1725264900028,-500.0,0.00024657,2]
[336960701,1725264900051,-355.1671866,0.00024657,2]
[336960704,1725264924131,166.549643,0.00014247,2]
[336960712,1725265452062,167.366732,0.00014247,2]
[336960715,1725265534315,-162.331416,0.00023066,2]
[336960716,1725265534338,-300.0,0.00023385,2]
[336960717,1725265534362,-1072.1727136,0.00023386,2]
[336960736,1725265631088,-161.408682,0.00023309,2]
[336960737,1725265631110,-300.0,0.00023385,2]
[336960738,1725265631134,-505.59425884,0.00023386,2]
[336960743,1725265648087,-2319.85245821,0.00023386,2]
[336960750,1725265747142,-8217.07578201,0.00021,5]
[336960751,1725265747164,-300.0,0.000231,2]
[336960752,1725265747186,-2852.8571647,0.00023101,2]
[336960753,1725265747210,-12533.02799425,0.00023386,2]
[336960754,1725265750107,-4261.1114692,0.00023386,2]
[336960755,1725265750133,-161.408682,0.00023431,2]
[336960756,1725265750154,-161.408682,0.00023552,2]
[336960757,1725265750176,-161.408682,0.00023674,2]
[336960758,1725265750198,-161.408682,0.00023795,2]
[336960759,1725265750221,-298.084693,0.00023836,2]
[336960760,1725265750242,-161.408682,0.00023917,2]
[336960761,1725265750263,-161.408682,0.00024038,2]
[336960762,1725265750284,-161.408682,0.00024159,2]
[336960793,1725265832606,-161.408682,0.00024281,2]
[336960794,1725265832616,-161.408682,0.00024402,2]
[336960795,1725265832626,-4353.47305141,0.00024457,2]
[336960796,1725265832635,-161.408682,0.00024524,2]
[336960797,1725265832644,-300.0,0.00024556,2]
[336960798,1725265832654,-10996.00063613,0.00024557,3]
[336960799,1725265832666,-412.00823506,0.00024557,3]
[336960813,1725265838688,-480.02913384,0.00024557,3]
[336960815,1725265838707,-1229.73450432,0.00024557,3]
[336960830,1725265838840,-16637.3428302,0.00024557,3]
[336960832,1725265838850,-1136.20271851,0.00024557,2]
[336960834,1725265838859,-1625.79623013,0.00024558,2]
[336960836,1725265838869,-9029.1805004,0.00024647,3]
[336960838,1725265838879,-902.91805004,0.00024648,3]
[336960840,1725265838890,-250.0,0.00024656,2]
[336960842,1725265838901,-500.0,0.00024656,2]
[336960844,1725265838912,-208.01223997,0.00024656,2]
[336960846,1725265838922,-23184.42133232,0.00024657,11]
[336960849,1725265838939,-1816.01413262,0.00024657,11]
[336960851,1725265838955,-500.0,0.00024657,2]
[336960853,1725265838964,-500.0,0.00024657,2]
[336960855,1725265838974,-500.0,0.00024657,2]
[336960857,1725265838984,-500.0,0.00024657,2]
[336960859,1725265838994,-500.0,0.00024657,2]
[336960861,1725265839004,-500.0,0.00024657,2]
[336960863,1725265839014,-500.0,0.00024657,2]
[336960865,1725265839024,-500.0,0.00024657,2]
[336960867,1725265839033,-504.42841578,0.00024657,2]
[336960869,1725265839043,-500.0,0.00024657,2]
[336960872,1725265839054,-502.16733986,0.00024657,2]
[336960874,1725265839063,-500.0,0.00024657,2]
[336960876,1725265839073,-500.0,0.00024657,2]
[336960877,1725265839083,-500.92369958,0.00024657,2]
[336960878,1725265839092,-500.0,0.00024657,2]
[336960879,1725265839102,-552.86277388,0.00024657,2]
[336960880,1725265839112,-500.0,0.00024657,2]
[336960881,1725265839123,-500.0,0.00024657,2]
[336960882,1725265839134,-501.02018919,0.00024657,2]
[336960883,1725265839145,-232.21282947,0.00024657,2]
[336960884,1725265839159,-504.98,0.00024657,2]
[336960885,1725265839168,-154.60575532,0.00024657,2]
[336960886,1725265839178,-508.55,0.00024657,2]
[336960887,1725265839187,-500.0,0.00024657,2]
[336960888,1725265839200,-500.0,0.00024657,2]
[336960889,1725265839210,-500.0,0.00024657,2]
[336960890,1725265839220,-500.0,0.00024657,2]
[336960891,1725265839229,-209.44276799,0.00024657,2]
[336960892,1725265839240,-500.0,0.00024657,2]
[336960893,1725265839250,-500.0,0.00024657,2]
[336960894,1725265839260,-500.0,0.00024657,2]
[336960895,1725265839270,-619.43616702,0.00024657,2]
[336960896,1725265839280,-500.0,0.00024657,2]
[336960897,1725265839289,-500.0,0.00024657,2]
[336960898,1725265839303,-501.82677298,0.00024657,2]
[336960899,1725265839313,-500.0,0.00024657,2]
[336960900,1725265839322,-500.73013519,0.00024657,2]
[336960901,1725265839334,-500.0,0.00024657,2]
[336960902,1725265839345,-500.0,0.00024657,2]
[336960903,1725265839356,-500.0,0.00024657,2]
[336960904,1725265839366,-500.0,0.00024657,2]
[336960905,1725265839376,-500.0,0.00024657,2]
[336960906,1725265839386,-500.0,0.00024657,2]
[336960907,1725265839396,-500.0,0.00024657,2]
[336960908,1725265839406,-500.0,0.00024657,2]
[336960909,1725265839417,-500.0,0.00024657,2]
[336960910,1725265839428,-500.0,0.00024657,2]
[336960911,1725265839438,-500.69386133,0.00024657,2]
[336960912,1725265839450,-500.0,0.00024657,2]
[336960913,1725265839460,-503.96917444,0.00024657,2]
[336960914,1725265839469,-500.40366066,0.00024657,2]
[336960915,1725265839480,-500.0,0.00024657,2]
[336960916,1725265839490,-500.0,0.00024657,2]
[336960917,1725265839499,-500.0,0.00024657,2]
[336960918,1725265839509,-500.0,0.00024657,2]
[336960919,1725265839519,-500.0,0.00024657,2]
[336960920,1725265839528,-500.0,0.00024657,2]
[336960921,1725265839538,-515.75823443,0.00024657,2]
[336960922,1725265839548,-500.0,0.00024657,2]
[336960923,1725265839558,-500.0,0.00024657,2]
[336960924,1725265839569,-500.0,0.00024657,2]
[336960925,1725265839578,-500.0,0.00024657,2]
[336960926,1725265839589,-500.0,0.00024657,2]
[336960927,1725265839599,-500.0,0.00024657,2]
[336960928,1725265839609,-532.78844854,0.00024657,2]
[336960929,1725265839619,-500.0,0.00024657,2]
[336960930,1725265839628,-490.90114801,0.00024657,2]
[336960931,1725265839638,-500.0,0.00024657,2]
[336960932,1725265839648,-1001.56,0.00024657,2]
[336960933,1725265839658,-500.0,0.00024657,2]
[336960934,1725265839667,-500.0,0.00024657,2]
[336960935,1725265839677,-505.56234461,0.00024657,2]
[336960936,1725265839687,-213.17927534,0.00024657,2]
[336960937,1725265839699,-500.0,0.00024657,2]
[336960938,1725265839709,-208.2996,0.00024657,2]
[336960939,1725265839719,-500.0,0.00024657,2]
[336960940,1725265839729,-500.0,0.00024657,2]
[336960941,1725265839739,-500.0,0.00024657,2]
[336960942,1725265839754,-500.0,0.00024657,2]
[336960943,1725265839764,-496.45500936,0.00024657,2]
[336960944,1725265839773,-500.0,0.00024657,2]
[336960945,1725265839783,-500.0,0.00024657,2]
[336960946,1725265839792,-500.0,0.00024657,2]
[336960947,1725265839803,-500.0,0.00024657,2]
[336960948,1725265839813,-500.0,0.00024657,2]
[336960949,1725265839824,-385.87282955,0.00024657,2]
[336960950,1725265839834,-500.0,0.00024657,2]
[336960951,1725265839845,-539.30299554,0.00024657,2]
[336960952,1725265839856,-500.0,0.00024657,2]
[336960953,1725265839866,-473.35921096,0.00024657,2]
[336960954,1725265839877,-206.73513008,0.00024657,2]
[336960955,1725265839887,-500.0,0.00024657,2]
[336960956,1725265839896,-500.0,0.00024657,2]
[336960957,1725265839908,-500.0,0.00024657,2]
[336960958,1725265839918,-500.0,0.00024657,2]
[336960959,1725265839927,-505.89865294,0.00024657,2]
[336960960,1725265839937,-500.0,0.00024657,2]
[336960961,1725265839950,-501.46132272,0.00024657,2]
[336960962,1725265839959,-500.0,0.00024657,2]
[336960963,1725265839969,-500.0,0.00024657,2]
[336960964,1725265839978,-500.0,0.00024657,2]
[336960965,1725265839988,-500.0,0.00024657,2]
[336960966,1725265839998,-500.0,0.00024657,2]
[336960967,1725265840007,-500.0,0.00024657,2]
[336960968,1725265840017,-500.0,0.00024657,2]
[336960969,1725265840027,-501.30631589,0.00024657,2]
[336960970,1725265840037,-500.0,0.00024657,2]
[336960971,1725265840047,-500.0,0.00024657,2]
[336960973,1725265840057,-500.0,0.00024657,2]
[336960974,1725265840067,-500.0,0.00024657,2]
[336960975,1725265840076,-500.0,0.00024657,2]
[336960976,1725265840086,-500.0,0.00024657,2]
[336960977,1725265840095,-200.0,0.00024657,2]
[336960978,1725265840105,-500.0,0.00024657,2]
[336960979,1725265840114,-500.0,0.00024657,2]
[336960980,1725265840124,-500.0,0.00024657,2]
[336960981,1725265840134,-500.0,0.00024657,2]
[336960982,1725265840143,-500.0,0.00024657,2]
[336960987,1725265840337,-500.0,0.00024657,2]
[336960988,1725265840350,-500.73495151,0.00024657,2]
[336960989,1725265840360,-500.0,0.00024657,2]
[336960990,1725265840370,-500.0,0.00024657,2]
[336960991,1725265840379,-500.0,0.00024657,2]
[336960992,1725265840389,-500.0,0.00024657,2]
[336960993,1725265840398,-500.0,0.00024657,2]
[336960994,1725265840408,-500.0,0.00024657,2]
[336960995,1725265840418,-500.0,0.00024657,2]
[336960996,1725265840427,-500.0,0.00024657,2]
[336960997,1725265840438,-500.0,0.00024657,2]
[336960998,1725265840450,-500.0,0.00024657,2]
[336960999,1725265840459,-500.0,0.00024657,2]
[336961000,1725265840468,-500.43665897,0.00024657,2]
[336961001,1725265840477,-500.0,0.00024657,2]
[336961002,1725265840486,-500.0,0.00024657,2]
[336961003,1725265840496,-500.0,0.00024657,2]
[336961004,1725265840506,-495.81738523,0.00024657,2]
[336961007,1725265840516,-500.0,0.00024657,2]
[336961008,1725265840525,-500.0,0.00024657,2]
[336961010,1725265840539,-500.0,0.00024657,2]
[336961011,1725265840548,-500.0,0.00024657,2]
[336961012,1725265840557,-500.0,0.00024657,2]
[336961014,1725265840566,-500.81808928,0.00024657,2]
[336961015,1725265840575,-500.0,0.00024657,2]
[336961016,1725265840594,-500.0,0.00024657,2]
[336961017,1725265840606,-500.0,0.00024657,2]
[336961018,1725265840618,-500.0,0.00024657,2]
[336961019,1725265840628,-500.0,0.00024657,2]
[336961020,1725265840638,-500.0,0.00024657,2]
[336961021,1725265840648,-500.0,0.00024657,2]
[336961022,1725265840659,-500.0,0.00024657,2]
[336961023,1725265840669,-500.0,0.00024657,2]
[336961024,1725265840678,-500.0,0.00024657,2]
[336961025,1725265840688,-236.67096896,0.00024657,2]
[336961026,1725265840699,-294.70936262,0.00024657,2]
[336961027,1725265840709,-500.0,0.00024657,2]
[336961028,1725265840719,-391.54057447,0.00024657,2]
[336961029,1725265840729,-500.0,0.00024657,2]
[336961030,1725265840739,-500.0,0.00024657,2]
[336961031,1725265840749,-500.46054907,0.00024657,2]
[336961032,1725265840760,-500.0,0.00024657,2]
[336961033,1725265840770,-500.0,0.00024657,2]
[336961034,1725265840780,-500.0,0.00024657,2]
[336961035,1725265840789,-500.0,0.00024657,2]
[336961036,1725265840800,-500.5917606,0.00024657,2]
[336961037,1725265840810,-500.0,0.00024657,2]
[336961038,1725265840820,-500.0,0.00024657,2]
[336961039,1725265840830,-500.0,0.00024657,2]
[336961040,1725265840840,-505.64684433,0.00024657,2]
[336961041,1725265840851,-500.0,0.00024657,2]
[336961042,1725265840861,-500.0,0.00024657,2]
[336961043,1725265840872,-500.0,0.00024657,2]
[336961044,1725265840882,-500.0,0.00024657,2]
[336961045,1725265840892,-500.0,0.00024657,2]
[336961046,1725265840902,-500.0,0.00024657,2]
[336961047,1725265840912,-500.0,0.00024657,2]
[336961048,1725265840922,-500.0,0.00024657,2]
[336961049,1725265840932,-505.84829861,0.00024657,2]
[336961050,1725265840942,-500.0,0.00024657,2]
[336961051,1725265840956,-500.0,0.00024657,2]
[336961053,1725265840966,-500.0,0.00024657,2]
[336961054,1725265840976,-500.0,0.00024657,2]
[336961055,1725265840987,-500.0,0.00024657,2]
[336961056,1725265840996,-500.0,0.00024657,2]
[336961057,1725265841006,-500.0,0.00024657,2]
[336961058,1725265841016,-500.0,0.00024657,2]
[336961059,1725265841026,-500.0,0.00024657,2]
[336961060,1725265841036,-500.0,0.00024657,2]
[336961061,1725265841045,-500.0,0.00024657,2]
[336961062,1725265841056,-500.0,0.00024657,2]
[336961063,1725265841065,-199.66020972,0.00024657,2]
[336961064,1725265841075,-504.81597529,0.00024657,2]
[336961065,1725265841085,-505.34313823,0.00024657,2]
[336961066,1725265841095,-500.0,0.00024657,2]
[336961067,1725265841104,-501.33735503,0.00024657,2]
[336961068,1725265841114,-501.57384797,0.00024657,2]
[336961069,1725265841124,-525.46739308,0.00024657,2]
[336961070,1725265841134,-500.0,0.00024657,2]
[336961071,1725265841143,-500.0,0.00024657,2]
[336961072,1725265841156,-537.43010146,0.00024657,2]
[336961073,1725265841165,-500.0,0.00024657,2]
[336961074,1725265841174,-500.0,0.00024657,2]
[336961075,1725265841184,-500.0,0.00024657,2]
[336961076,1725265841195,-500.0,0.00024657,2]
[336961077,1725265841207,-500.0,0.00024657,2]
[336961078,1725265841216,-500.0,0.00024657,2]
[336961079,1725265841225,-500.0,0.00024657,2]
[336961080,1725265841235,-500.0,0.00024657,2]
[336961081,1725265841244,-500.0,0.00024657,2]
[336961082,1725265841253,-500.0,0.00024657,2]
[336961083,1725265841264,-500.0,0.00024657,2]
[336961084,1725265841273,-500.0,0.00024657,2]
[336961085,1725265841282,-500.0,0.00024657,2]
[336961086,1725265841291,-500.0,0.00024657,2]
[336961087,1725265841302,-621.09,0.00024657,2]
[336961088,1725265841315,-500.0,0.00024657,2]
[336961089,1725265841325,-500.0,0.00024657,2]
[336961090,1725265841335,-500.0,0.00024657,2]
[336961091,1725265841345,-500.0,0.00024657,2]
[336961092,1725265841356,-500.0,0.00024657,2]
[336961093,1725265841366,-644.3152886,0.00024657,4]
[336961094,1725265841375,-500.0,0.00024657,2]
[336961095,1725265841385,-500.0,0.00024657,2]
[336961096,1725265841395,-500.0,0.00024657,2]
[336961097,1725265841406,-500.0,0.00024657,2]
[336961098,1725265841415,-500.0,0.00024657,2]
[336961099,1725265841425,-500.0,0.00024657,2]
[336961100,1725265841435,-572.3146325,0.00024657,2]
[336961101,1725265841446,-500.0,0.00024657,2]
[336961102,1725265841456,-500.0,0.00024657,2]
[336961103,1725265841466,-503.37539464,0.00024657,2]
[336961104,1725265841476,-156.88726773,0.00024657,2]
[336961105,1725265841486,-500.0,0.00024657,2]
[336961106,1725265841495,-500.0,0.00024657,2]
[336961107,1725265841505,-500.0,0.00024657,2]
[336961108,1725265841515,-500.0,0.00024657,2]
[336961109,1725265841525,-500.0,0.00024657,2]
[336961110,1725265841535,-500.0,0.00024657,2]
[336961111,1725265841544,-500.0,0.00024657,2]
[336961112,1725265841554,-443.52602092,0.00024657,2]
[336961113,1725265841564,-500.0,0.00024657,2]
[336961114,1725265841573,-500.0,0.00024657,2]
[336961115,1725265841584,-671.85,0.00024657,2]
[336961116,1725265841593,-500.0,0.00024657,2]
[336961117,1725265841603,-500.0,0.00024657,2]
[336961118,1725265841612,-500.0,0.00024657,2]
[336961119,1725265841621,-555.57,0.00024657,2]
[336961120,1725265841631,-500.0,0.00024657,2]
[336961121,1725265841640,-500.0,0.00024657,2]
[336961122,1725265841651,-500.0,0.00024657,2]
[336961123,1725265841660,-503.04928506,0.00024657,2]
[336961124,1725265841670,-500.0,0.00024657,2]
[336961125,1725265841680,-540.93524496,0.00024657,2]
[336961126,1725265841689,-500.0,0.00024657,2]
[336961127,1725265841701,-500.0,0.00024657,2]
[336961128,1725265841710,-500.0,0.00024657,2]
[336961129,1725265841720,-500.0,0.00024657,2]
[336961130,1725265841729,-500.0,0.00024657,2]
[336961131,1725265841739,-500.0,0.00024657,2]
[336961132,1725265841748,-506.20146004,0.00024657,2]
[336961133,1725265841758,-500.0,0.00024657,2]
[336961134,1725265841767,-500.0,0.00024657,2]
[336961135,1725265841777,-554.3,0.00024657,2]
[336961136,1725265841786,-500.0,0.00024657,2]
[336961137,1725265841795,-500.0,0.00024657,2]
[336961138,1725265841805,-500.0,0.00024657,2]
[336961139,1725265841815,-500.0,0.00024657,2]
[336961140,1725265841825,-514.26,0.00024657,2]
[336961141,1725265841835,-587.07,0.00024657,2]
[336961142,1725265841844,-500.0,0.00024657,2]
[336961143,1725265841854,-500.0,0.00024657,2]